[Event "Titled Tuesday Blitz July 20 2021"]
[White "Hryshchenko, Kamila"]
[Black "Triapishko, Alexandr"]
[WhiteFideId "14147491"]
[BlackFideId "14122286"]
[WhiteElo "1966"]
[BlackElo "2490"]
[Result "0-1"]
[Round "03"]
[TimeControl "180+1"]
[Date "2021.07.20"]
[WhiteClock "0:01:19"]
[BlackClock "0:00:51"]

1. e4 {[%clk 0:03:00]}  c5 {[%clk 0:02:45]} 2. Nf3 {[%clk 0:02:56]}  Nc6 {[%clk 0:02:45]} 3. Nc3 {[%clk 0:02:51]}  Nf6 {[%clk 0:02:42]} 4. d4 {[%clk 0:02:46]}  cxd4 {[%clk 0:02:43]} 5. Nxd4 {[%clk 0:02:44]}  e5 {[%clk 0:02:43]} 6. Ndb5 {[%clk 0:02:43]}  d6 {[%clk 0:02:44]} 7. Bg5 {[%clk 0:02:41]}  a6 {[%clk 0:02:43]} 8. Na3 {[%clk 0:02:41]}  b5 {[%clk 0:02:43]} 9. Nd5 {[%clk 0:02:41]}  Be7 {[%clk 0:02:44]} 10. Bxf6 {[%clk 0:02:36]}  Bxf6 {[%clk 0:02:44]} 11. c4 {[%clk 0:02:32]}  b4 {[%clk 0:02:44]} 12. Nc2 {[%clk 0:02:31]}  a5 {[%clk 0:02:44]} 13. g3 {[%clk 0:02:27]}  O-O {[%clk 0:02:44]} 14. Bg2 {[%clk 0:02:26]}  Bg5 {[%clk 0:02:43]} 15. O-O {[%clk 0:02:26]}  g6 {[%clk 0:02:39]} 16. Kh1 {[%clk 0:02:26]}  Bh6 {[%clk 0:02:18]} 17. Qd3 {[%clk 0:02:21]}  Be6 {[%clk 0:02:15]} 18. a3 {[%clk 0:02:17]}  bxa3 {[%clk 0:01:45]} 19. Rxa3 {[%clk 0:02:18]}  Bxd5 {[%clk 0:01:41]} 20. exd5 {[%clk 0:02:04]}  Nb4 {[%clk 0:01:37]} 21. Nxb4 {[%clk 0:02:02]}  axb4 {[%clk 0:01:38]} 22. Rxa8 {[%clk 0:01:57]}  Qxa8 {[%clk 0:01:39]} 23. Qb3 {[%clk 0:01:55]}  Qa5 {[%clk 0:01:37]} 24. Rd1 {[%clk 0:01:46]}  Qc5 {[%clk 0:01:33]} 25. Kg1 {[%clk 0:01:41]}  Ra8 {[%clk 0:01:33]} 26. Bf1 {[%clk 0:01:41]}  f5 {[%clk 0:01:31]} 27. Qf3 {[%clk 0:01:38]}  e4 {[%clk 0:01:30]} 28. Qe2 {[%clk 0:01:35]}  b3 {[%clk 0:01:30]} 29. g4 {[%clk 0:01:34]}  Rf8 {[%clk 0:00:56]} 30. gxf5 {[%clk 0:01:32]}  Rxf5 {[%clk 0:00:56]} 31. Bh3 {[%clk 0:01:28]}  Rxf2 {[%clk 0:00:54]} 32. Be6+ {[%clk 0:01:23]}  Kg7 {[%clk 0:00:54]} 33. Qxf2 {[%clk 0:01:17]}  Be3 {[%clk 0:00:54]} 34. Rf1 {[%clk 0:01:18]}  Bxf2+ {[%clk 0:00:51]} 35. Rxf2 {[%clk 0:01:19]} 0-1


[Site "https://www.chess.com"]

[Event "Titled Tuesday Blitz July 20 2021"]
[White "Iskusnyh, Sergei"]
[Black "Dolzhykova, Kateryna"]
[WhiteFideId "4120027"]
[BlackFideId "14113414"]
[WhiteElo "2492"]
[BlackElo "2151"]
[Result "1-0"]
[Round "03"]
[TimeControl "180+1"]
[Date "2021.07.21"]
[WhiteClock "0:01:01"]
[BlackClock "0:00:38"]

1. d4 {[%clk 0:03:00]}  Nf6 {[%clk 0:02:59]} 2. c4 {[%clk 0:03:01]}  e6 {[%clk 0:02:58]} 3. g3 {[%clk 0:03:01]}  d5 {[%clk 0:02:58]} 4. Bg2 {[%clk 0:03:01]}  Be7 {[%clk 0:02:56]} 5. Nf3 {[%clk 0:03:00]}  O-O {[%clk 0:02:56]} 6. Qc2 {[%clk 0:03:01]}  c6 {[%clk 0:02:55]} 7. O-O {[%clk 0:03:00]}  b6 {[%clk 0:02:53]} 8. Rd1 {[%clk 0:02:59]}  Ba6 {[%clk 0:02:53]} 9. Nbd2 {[%clk 0:02:58]}  Nbd7 {[%clk 0:02:52]} 10. e4 {[%clk 0:02:58]}  dxe4 {[%clk 0:02:51]} 11. Ng5 {[%clk 0:02:54]}  h6 {[%clk 0:02:49]} 12. Ngxe4 {[%clk 0:02:53]}  Nxe4 {[%clk 0:02:49]} 13. Nxe4 {[%clk 0:02:53]}  Rc8 {[%clk 0:02:49]} 14. b3 {[%clk 0:02:46]}  Nf6 {[%clk 0:02:45]} 15. Nc3 {[%clk 0:02:45]}  Qe8 {[%clk 0:02:43]} 16. Bb2 {[%clk 0:02:32]}  c5 {[%clk 0:02:42]} 17. d5 {[%clk 0:02:32]}  exd5 {[%clk 0:02:43]} 18. Nxd5 {[%clk 0:02:32]}  Nxd5 {[%clk 0:02:41]} 19. Bxd5 {[%clk 0:02:31]}  Kh8 {[%clk 0:02:33]} 20. Re1 {[%clk 0:02:28]}  Qd8 {[%clk 0:02:33]} 21. Rad1 {[%clk 0:02:27]}  Bd6 {[%clk 0:02:11]} 22. Bf3 {[%clk 0:01:57]}  f6 {[%clk 0:01:49]} 23. Re6 {[%clk 0:01:52]}  Qc7 {[%clk 0:01:27]} 24. Rexd6 {[%clk 0:01:50]}  Rcd8 {[%clk 0:01:27]} 25. Rxd8 {[%clk 0:01:46]}  Rxd8 {[%clk 0:01:28]} 26. Rxd8+ {[%clk 0:01:45]}  Qxd8 {[%clk 0:01:29]} 27. Qg6 {[%clk 0:01:34]}  Bc8 {[%clk 0:00:54]} 28. Be4 {[%clk 0:01:14]}  Kg8 {[%clk 0:00:53]} 29. Bxf6 {[%clk 0:01:04]}  Qf8 {[%clk 0:00:38]} 30. Bd5+ {[%clk 0:01:01]}  Kh8 {[%clk 0:00:38]} 31. Qxh6# {[%clk 0:01:01]} 1-0


[Site "https://www.chess.com"]

[Event "Titled Tuesday Blitz July 20 2021"]
[White "Jodorcovsky Werjivker, Paulo"]
[Black "Bartel, Mateusz"]
[WhiteFideId "3700305"]
[BlackFideId "1112635"]
[WhiteElo "2142"]
[BlackElo "2586"]
[Result "0-1"]
[Round "03"]
[TimeControl "180+1"]
[Date "2021.07.21"]
[WhiteClock "0:01:41"]
[BlackClock "0:00:47"]

1. e4 {[%clk 0:03:00]}  e5 {[%clk 0:02:54]} 2. Nf3 {[%clk 0:02:59]}  Nc6 {[%clk 0:02:53]} 3. Bb5 {[%clk 0:02:58]}  a6 {[%clk 0:02:53]} 4. Ba4 {[%clk 0:02:57]}  d6 {[%clk 0:02:54]} 5. O-O {[%clk 0:02:52]}  Bd7 {[%clk 0:02:53]} 6. Bxc6 {[%clk 0:02:51]}  bxc6 {[%clk 0:02:52]} 7. d4 {[%clk 0:02:52]}  f6 {[%clk 0:02:52]} 8. dxe5 {[%clk 0:02:51]}  fxe5 {[%clk 0:02:51]} 9. Bg5 {[%clk 0:02:48]}  Be7 {[%clk 0:02:49]} 10. Bxe7 {[%clk 0:02:43]}  Nxe7 {[%clk 0:02:46]} 11. Ng5 {[%clk 0:02:42]}  O-O {[%clk 0:02:44]} 12. Qh5 {[%clk 0:02:41]}  h6 {[%clk 0:02:43]} 13. Nh3 {[%clk 0:02:40]}  Qe8 {[%clk 0:02:35]} 14. Qh4 {[%clk 0:02:27]}  Ng6 {[%clk 0:02:18]} 15. Qh5 {[%clk 0:02:25]}  Bxh3 {[%clk 0:01:34]} 16. Qxh3 {[%clk 0:02:23]}  Nf4 {[%clk 0:01:35]} 17. Qe3 {[%clk 0:02:21]}  Qg6 {[%clk 0:01:34]} 18. g3 {[%clk 0:02:21]}  d5 {[%clk 0:01:24]} 19. exd5 {[%clk 0:02:19]}  cxd5 {[%clk 0:01:23]} 20. Qxe5 {[%clk 0:02:15]}  Rae8 {[%clk 0:01:22]} 21. Qxc7 {[%clk 0:02:07]}  Rf7 {[%clk 0:01:01]} 22. Qc5 {[%clk 0:01:58]}  Re2 {[%clk 0:00:49]} 23. Nc3 {[%clk 0:01:57]}  Nh3+ {[%clk 0:00:48]} 24. Kg2 {[%clk 0:01:56]}  Rexf2+ {[%clk 0:00:48]} 25. Rxf2 {[%clk 0:01:55]}  Rxf2+ {[%clk 0:00:49]} 26. Qxf2 {[%clk 0:01:54]}  Nxf2 {[%clk 0:00:48]} 27. Kxf2 {[%clk 0:01:55]}  Qxc2+ {[%clk 0:00:49]} 28. Ne2 {[%clk 0:01:45]}  d4 {[%clk 0:00:49]} 29. Rc1 {[%clk 0:01:44]}  Qd2 {[%clk 0:00:48]} 30. Rc8+ {[%clk 0:01:43]}  Kh7 {[%clk 0:00:47]} 31. Kf3 {[%clk 0:01:41]}  Qd3+ {[%clk 0:00:47]} 32. Kf2 {[%clk 0:01:41]}  Qf5+ {[%clk 0:00:47]} 0-1


[Site "https://www.chess.com"]

[Event "Titled Tuesday Blitz July 20 2021"]
[White "Kamsky, Gata"]
[Black "Djokic, Mihailo"]
[WhiteFideId "2000024"]
[BlackFideId "976440"]
[WhiteElo "2644"]
[BlackElo "2018"]
[Result "1-0"]
[Round "03"]
[TimeControl "180+1"]
[Date "2021.07.21"]
[WhiteClock "0:00:31"]
[BlackClock "0:00:05"]

1. e4 {[%clk 0:03:00]}  c5 {[%clk 0:02:59]} 2. Nf3 {[%clk 0:02:55]}  d6 {[%clk 0:02:59]} 3. d4 {[%clk 0:02:52]}  cxd4 {[%clk 0:03:00]} 4. Nxd4 {[%clk 0:02:52]}  Nf6 {[%clk 0:03:00]} 5. Nc3 {[%clk 0:02:51]}  g6 {[%clk 0:03:00]} 6. Be2 {[%clk 0:02:49]}  Nc6 {[%clk 0:02:58]} 7. O-O {[%clk 0:02:48]}  Nxd4 {[%clk 0:02:57]} 8. Qxd4 {[%clk 0:02:47]}  Bg7 {[%clk 0:02:58]} 9. Be3 {[%clk 0:02:40]}  O-O {[%clk 0:02:57]} 10. Qd2 {[%clk 0:02:40]}  Ng4 {[%clk 0:02:55]} 11. Bxg4 {[%clk 0:02:39]}  Bxg4 {[%clk 0:02:56]} 12. Bd4 {[%clk 0:02:32]}  Be6 {[%clk 0:02:52]} 13. Bxg7 {[%clk 0:02:30]}  Kxg7 {[%clk 0:02:53]} 14. Qd4+ {[%clk 0:02:25]}  f6 {[%clk 0:02:52]} 15. Nd5 {[%clk 0:02:25]}  Rc8 {[%clk 0:02:50]} 16. c4 {[%clk 0:02:23]}  b6 {[%clk 0:02:49]} 17. b3 {[%clk 0:02:22]}  Bf7 {[%clk 0:02:46]} 18. a4 {[%clk 0:02:17]}  Re8 {[%clk 0:02:46]} 19. Rad1 {[%clk 0:02:15]}  Qd7 {[%clk 0:02:43]} 20. f4 {[%clk 0:02:13]}  Qc6 {[%clk 0:02:41]} 21. Kh1 {[%clk 0:02:13]}  Qc5 {[%clk 0:02:41]} 22. Qd2 {[%clk 0:02:10]}  Bxd5 {[%clk 0:02:20]} 23. exd5 {[%clk 0:02:10]}  e6 {[%clk 0:02:18]} 24. dxe6 {[%clk 0:02:08]}  Rxe6 {[%clk 0:02:19]} 25. f5 {[%clk 0:02:07]}  gxf5 {[%clk 0:02:17]} 26. Rf3 {[%clk 0:01:47]}  Rce8 {[%clk 0:02:18]} 27. h3 {[%clk 0:01:23]}  h6 {[%clk 0:02:14]} 28. Rdf1 {[%clk 0:01:17]}  Re2 {[%clk 0:01:54]} 29. Qd3 {[%clk 0:01:15]}  Re1 {[%clk 0:01:48]} 30. Rxf5 {[%clk 0:01:10]}  Rxf1+ {[%clk 0:01:46]} 31. Rxf1 {[%clk 0:01:06]}  Re3 {[%clk 0:01:38]} 32. Qd1 {[%clk 0:01:06]}  Rg3 {[%clk 0:01:29]} 33. Rf3 {[%clk 0:01:01]}  Rg5 {[%clk 0:01:04]} 34. Qf1 {[%clk 0:00:58]}  Qe5 {[%clk 0:00:59]} 35. Qf2 {[%clk 0:00:43]}  Qa1+ {[%clk 0:00:57]} 36. Kh2 {[%clk 0:00:43]}  Qe5+ {[%clk 0:00:56]} 37. g3 {[%clk 0:00:43]}  Kf7 {[%clk 0:00:31]} 38. Re3 {[%clk 0:00:42]}  Qc5 {[%clk 0:00:23]} 39. Qf3 {[%clk 0:00:41]}  d5 {[%clk 0:00:19]} 40. h4 {[%clk 0:00:39]}  Rg6 {[%clk 0:00:09]} 41. cxd5 {[%clk 0:00:35]}  Qc2+ {[%clk 0:00:05]} 42. Re2 {[%clk 0:00:35]}  Qc5 {[%clk 0:00:05]} 43. Qf5 {[%clk 0:00:33]}  Qd6 {[%clk 0:00:04]} 44. Re3 {[%clk 0:00:33]}  Rg8 {[%clk 0:00:01]} 45. Qh7+ {[%clk 0:00:33]}  Rg7 {[%clk 0:00:02]} 46. Qe4 {[%clk 0:00:31]}  Kg8 {[%clk 0:00:01]} 47. Qe6+ {[%clk 0:00:30]}  Qxe6 {[%clk 0:00:01]} 48. Rxe6 {[%clk 0:00:30]}  f5 {[%clk 0:00:01]} 49. Rxh6 {[%clk 0:00:30]}  Rd7 {[%clk 0:00:01]} 50. d6 {[%clk 0:00:30]}  Kf7 {[%clk 0:00:02]} 51. Rh7+ {[%clk 0:00:29]}  Ke6 {[%clk 0:00:03]} 52. Rxd7 {[%clk 0:00:30]}  Kxd7 {[%clk 0:00:04]} 53. h5 {[%clk 0:00:30]}  Kxd6 {[%clk 0:00:05]} 54. h6 {[%clk 0:00:30]}  Ke6 {[%clk 0:00:05]} 55. h7 {[%clk 0:00:31]} 1-0


[Site "https://www.chess.com"]

[Event "Titled Tuesday Blitz July 20 2021"]
[White "Kazakov, Mikhail"]
[Black "Darini, Pouria"]
[WhiteFideId "14102749"]
[BlackFideId "12502200"]
[WhiteElo "2373"]
[BlackElo "2489"]
[Result "0-1"]
[Round "03"]
[TimeControl "180+1"]
[Date "2021.07.21"]
[WhiteClock "0:00:01"]
[BlackClock "0:00:05"]

1. d4 {[%clk 0:03:00]}  Nf6 {[%clk 0:02:59]} 2. c4 {[%clk 0:02:54]}  g6 {[%clk 0:02:59]} 3. Nc3 {[%clk 0:02:53]}  d5 {[%clk 0:03:00]} 4. cxd5 {[%clk 0:02:50]}  Nxd5 {[%clk 0:03:01]} 5. e4 {[%clk 0:02:50]}  Nxc3 {[%clk 0:03:02]} 6. bxc3 {[%clk 0:02:50]}  Bg7 {[%clk 0:03:02]} 7. Ba3 {[%clk 0:02:50]}  Nd7 {[%clk 0:03:00]} 8. Qb3 {[%clk 0:02:49]}  c5 {[%clk 0:02:57]} 9. Rd1 {[%clk 0:02:47]}  O-O {[%clk 0:02:38]} 10. Nf3 {[%clk 0:02:46]}  Rb8 {[%clk 0:02:22]} 11. Be2 {[%clk 0:02:40]}  b5 {[%clk 0:02:18]} 12. O-O {[%clk 0:02:31]}  Qc7 {[%clk 0:01:54]} 13. e5 {[%clk 0:02:11]}  e6 {[%clk 0:01:31]} 14. Qb1 {[%clk 0:01:57]}  Re8 {[%clk 0:01:10]} 15. Ng5 {[%clk 0:01:38]}  b4 {[%clk 0:01:08]} 16. cxb4 {[%clk 0:01:34]}  cxd4 {[%clk 0:01:09]} 17. f4 {[%clk 0:01:34]}  Qc3 {[%clk 0:00:15]} 18. Rd3 {[%clk 0:01:28]}  Qc7 {[%clk 0:00:10]} 19. Ne4 {[%clk 0:01:24]}  Nxe5 {[%clk 0:00:11]} 20. fxe5 {[%clk 0:01:22]}  Qxe5 {[%clk 0:00:12]} 21. Bf3 {[%clk 0:01:11]}  Ba6 {[%clk 0:00:12]} 22. Nc5 {[%clk 0:00:48]}  Qxc5 {[%clk 0:00:10]} 23. bxc5 {[%clk 0:00:20]}  Rxb1 {[%clk 0:00:11]} 24. Rxb1 {[%clk 0:00:20]}  Bxd3 {[%clk 0:00:11]} 25. Rc1 {[%clk 0:00:20]}  Bf8 {[%clk 0:00:10]} 26. Bb4 {[%clk 0:00:17]}  e5 {[%clk 0:00:10]} 27. Bb7 {[%clk 0:00:14]}  e4 {[%clk 0:00:05]} 28. Ba5 {[%clk 0:00:14]}  e3 {[%clk 0:00:05]} 29. c6 {[%clk 0:00:12]}  Be4 {[%clk 0:00:05]} 30. Re1 {[%clk 0:00:05]}  Bc5 {[%clk 0:00:05]} 31. Bc7 {[%clk 0:00:02]}  d3 {[%clk 0:00:05]} 32. Ba5 {[%clk 0:00:01]}  d2 {[%clk 0:00:05]} 0-1


[Site "https://www.chess.com"]

[Event "Titled Tuesday Blitz July 20 2021"]
[White "Kukhmazov, Arsen"]
[Black "Prraneeth Vuppala"]
[WhiteFideId "24108260"]
[BlackFideId "46622373"]
[WhiteElo "2453"]
[BlackElo "1759"]
[Result "1/2-1/2"]
[Round "03"]
[TimeControl "180+1"]
[Date "2021.07.20"]
[WhiteClock "0:00:11"]
[BlackClock "0:00:10"]

1. d4 {[%clk 0:03:00]}  Nf6 {[%clk 0:02:58]} 2. c4 {[%clk 0:03:01]}  e6 {[%clk 0:02:53]} 3. Nf3 {[%clk 0:03:00]}  d5 {[%clk 0:02:53]} 4. e3 {[%clk 0:03:00]}  b6 {[%clk 0:02:49]} 5. b3 {[%clk 0:03:00]}  Bb7 {[%clk 0:02:48]} 6. Bd3 {[%clk 0:03:01]}  Nbd7 {[%clk 0:02:47]} 7. O-O {[%clk 0:03:01]}  Bd6 {[%clk 0:02:47]} 8. Bb2 {[%clk 0:03:01]}  O-O {[%clk 0:02:46]} 9. Nc3 {[%clk 0:03:02]}  a6 {[%clk 0:02:46]} 10. Qe2 {[%clk 0:02:59]}  Ne4 {[%clk 0:02:25]} 11. Nd2 {[%clk 0:02:59]}  f5 {[%clk 0:02:15]} 12. f3 {[%clk 0:03:00]}  Qh4 {[%clk 0:01:37]} 13. g3 {[%clk 0:02:55]}  Bxg3 {[%clk 0:01:32]} 14. hxg3 {[%clk 0:02:56]}  Nxg3 {[%clk 0:01:31]} 15. Qh2 {[%clk 0:02:56]}  Qg5 {[%clk 0:01:09]} 16. f4 {[%clk 0:02:49]}  Nxf1+ {[%clk 0:01:07]} 17. Kxf1 {[%clk 0:02:49]}  Qe7 {[%clk 0:01:03]} 18. cxd5 {[%clk 0:02:24]}  Nf6 {[%clk 0:01:02]} 19. Nf3 {[%clk 0:02:07]}  Nxd5 {[%clk 0:00:52]} 20. Nxd5 {[%clk 0:02:02]}  Bxd5 {[%clk 0:00:53]} 21. Ne5 {[%clk 0:02:02]}  Rf6 {[%clk 0:00:52]} 22. Ke2 {[%clk 0:01:51]}  Rh6 {[%clk 0:00:43]} 23. Qg3 {[%clk 0:01:52]}  a5 {[%clk 0:00:31]} 24. Rg1 {[%clk 0:01:46]}  a4 {[%clk 0:00:31]} 25. bxa4 {[%clk 0:01:31]}  Rxa4 {[%clk 0:00:27]} 26. a3 {[%clk 0:01:31]}  g6 {[%clk 0:00:22]} 27. Rc1 {[%clk 0:01:19]}  c6 {[%clk 0:00:15]} 28. Nxc6 {[%clk 0:00:57]}  Qh4 {[%clk 0:00:15]} 29. Qxh4 {[%clk 0:00:47]}  Rxh4 {[%clk 0:00:16]} 30. Ne7+ {[%clk 0:00:47]}  Kg7 {[%clk 0:00:15]} 31. Nxd5 {[%clk 0:00:48]}  Rh2+ {[%clk 0:00:15]} 32. Kf3 {[%clk 0:00:48]}  Rxb2 {[%clk 0:00:16]} 33. Nc7 {[%clk 0:00:46]}  Kf6 {[%clk 0:00:14]} 34. Rc6 {[%clk 0:00:46]}  Rxa3 {[%clk 0:00:14]} 35. Bc4 {[%clk 0:00:42]}  Rc2 {[%clk 0:00:13]} 36. Nxe6 {[%clk 0:00:14]}  Rxc4 {[%clk 0:00:12]} 37. Rxc4 {[%clk 0:00:13]}  Kxe6 {[%clk 0:00:12]} 38. Rc6+ {[%clk 0:00:14]}  Kf7 {[%clk 0:00:09]} 39. Rxb6 {[%clk 0:00:15]}  h5 {[%clk 0:00:09]} 40. Rb7+ {[%clk 0:00:15]}  Kf6 {[%clk 0:00:10]} 41. Rb6+ {[%clk 0:00:15]}  Kf7 {[%clk 0:00:10]} 42. Rb7+ {[%clk 0:00:11]}  Kf6 {[%clk 0:00:10]} 43. Rh7 {[%clk 0:00:12]}  Ra2 {[%clk 0:00:09]} 44. Rh8 {[%clk 0:00:11]}  Rd2 {[%clk 0:00:09]} 45. Rb8 {[%clk 0:00:10]}  Kf7 {[%clk 0:00:08]} 46. Rb6 {[%clk 0:00:10]}  h4 {[%clk 0:00:07]} 47. Rb8 {[%clk 0:00:10]}  h3 {[%clk 0:00:07]} 48. Rh8 {[%clk 0:00:10]}  h2 {[%clk 0:00:08]} 49. Kg3 {[%clk 0:00:10]}  Re2 {[%clk 0:00:08]} 50. Kf3 {[%clk 0:00:10]}  Rd2 {[%clk 0:00:09]} 51. Kg3 {[%clk 0:00:11]}  Re2 {[%clk 0:00:09]} 52. Kf3 {[%clk 0:00:11]}  Rd2 {[%clk 0:00:10]} 1/2-1/2


[Site "https://www.chess.com"]

[Event "Titled Tuesday Blitz July 20 2021"]
[White "LEGENYA1998"]
[Black "Petriashvili, Nikoloz"]
[BlackFideId "13611216"]
[WhiteElo "2426"]
[BlackElo "2430"]
[Result "0-1"]
[Round "03"]
[TimeControl "180+1"]
[Date "2021.07.21"]
[WhiteClock "0:00:20"]
[BlackClock "0:00:45"]

1. e4 {[%clk 0:03:00]}  c6 {[%clk 0:03:00]} 2. Nf3 {[%clk 0:02:58]}  d5 {[%clk 0:03:01]} 3. Nc3 {[%clk 0:02:58]}  Bg4 {[%clk 0:02:59]} 4. h3 {[%clk 0:02:58]}  Bh5 {[%clk 0:02:59]} 5. exd5 {[%clk 0:02:55]}  cxd5 {[%clk 0:02:58]} 6. Bb5+ {[%clk 0:02:55]}  Nc6 {[%clk 0:02:52]} 7. g4 {[%clk 0:02:55]}  Bg6 {[%clk 0:02:52]} 8. Ne5 {[%clk 0:02:56]}  Qd6 {[%clk 0:02:44]} 9. d4 {[%clk 0:02:55]}  f6 {[%clk 0:02:43]} 10. Nxg6 {[%clk 0:02:51]}  hxg6 {[%clk 0:02:44]} 11. Qf3 {[%clk 0:02:50]}  e6 {[%clk 0:02:43]} 12. Bf4 {[%clk 0:02:48]}  Qb4 {[%clk 0:02:41]} 13. O-O-O {[%clk 0:02:48]}  Kf7 {[%clk 0:02:40]} 14. Nxd5 {[%clk 0:01:40]}  Qxb5 {[%clk 0:02:33]} 15. Nc7 {[%clk 0:01:39]}  Qc4 {[%clk 0:02:32]} 16. Nxa8 {[%clk 0:01:38]}  Qxa2 {[%clk 0:02:32]} 17. d5 {[%clk 0:01:33]}  exd5 {[%clk 0:01:35]} 18. Qxd5+ {[%clk 0:01:32]}  Qxd5 {[%clk 0:01:35]} 19. Rxd5 {[%clk 0:01:32]}  Bb4 {[%clk 0:01:34]} 20. Rd7+ {[%clk 0:01:29]}  Nge7 {[%clk 0:01:34]} 21. Nc7 {[%clk 0:01:28]}  g5 {[%clk 0:01:32]} 22. Bg3 {[%clk 0:01:22]}  Ba5 {[%clk 0:01:28]} 23. Nd5 {[%clk 0:01:19]}  Ke6 {[%clk 0:01:28]} 24. Rd6+ {[%clk 0:01:19]}  Kf7 {[%clk 0:01:28]} 25. Nxe7 {[%clk 0:01:20]}  Kxe7 {[%clk 0:01:28]} 26. Rdd1 {[%clk 0:01:14]}  Rc8 {[%clk 0:01:16]} 27. Kb1 {[%clk 0:01:08]}  Nd8 {[%clk 0:01:09]} 28. h4 {[%clk 0:01:08]}  gxh4 {[%clk 0:01:09]} 29. Bxh4 {[%clk 0:01:06]}  Ne6 {[%clk 0:01:09]} 30. c3 {[%clk 0:01:03]}  Rc4 {[%clk 0:01:08]} 31. Rhg1 {[%clk 0:00:57]}  Rf4 {[%clk 0:01:08]} 32. Bg3 {[%clk 0:00:54]}  Rf3 {[%clk 0:01:05]} 33. Rge1 {[%clk 0:00:50]}  Bb6 {[%clk 0:00:53]} 34. Rd6 {[%clk 0:00:46]}  Be3 {[%clk 0:00:50]} 35. Rxe6+ {[%clk 0:00:41]}  Kxe6 {[%clk 0:00:51]} 36. Rxe3+ {[%clk 0:00:41]}  Rxe3 {[%clk 0:00:52]} 37. fxe3 {[%clk 0:00:42]}  Kd5 {[%clk 0:00:53]} 38. Kc2 {[%clk 0:00:38]}  Ke4 {[%clk 0:00:53]} 39. Kd2 {[%clk 0:00:37]}  Kf3 {[%clk 0:00:53]} 40. Bb8 {[%clk 0:00:37]}  a6 {[%clk 0:00:53]} 41. Kd3 {[%clk 0:00:34]}  Kxg4 {[%clk 0:00:53]} 42. Ke4 {[%clk 0:00:35]}  f5+ {[%clk 0:00:54]} 43. Kd5 {[%clk 0:00:34]}  g5 {[%clk 0:00:52]} 44. Kc5 {[%clk 0:00:34]}  Kf3 {[%clk 0:00:52]} 45. Kb6 {[%clk 0:00:25]}  Kxe3 {[%clk 0:00:50]} 46. Kxb7 {[%clk 0:00:23]}  f4 {[%clk 0:00:49]} 47. Ba7+ {[%clk 0:00:20]}  Kd3 {[%clk 0:00:48]} 48. Kxa6 {[%clk 0:00:17]}  g4 {[%clk 0:00:48]} 49. Kb5 {[%clk 0:00:17]}  f3 {[%clk 0:00:45]} 50. Bf2 {[%clk 0:00:17]}  Ke2 {[%clk 0:00:45]} 51. Bg3 {[%clk 0:00:17]}  f2 {[%clk 0:00:46]} 52. Bxf2 {[%clk 0:00:17]}  Kxf2 {[%clk 0:00:47]} 53. c4 {[%clk 0:00:18]}  g3 {[%clk 0:00:47]} 54. c5 {[%clk 0:00:18]}  g2 {[%clk 0:00:48]} 55. c6 {[%clk 0:00:19]}  g1=Q {[%clk 0:00:49]} 56. c7 {[%clk 0:00:20]}  Qg4 {[%clk 0:00:48]} 57. Kb6 {[%clk 0:00:20]}  Qc8 {[%clk 0:00:48]} 58. Kc6 {[%clk 0:00:20]}  Ke3 {[%clk 0:00:49]} 59. b4 {[%clk 0:00:21]}  Ke4 {[%clk 0:00:50]} 60. b5 {[%clk 0:00:21]}  Ke5 {[%clk 0:00:44]} 61. b6 {[%clk 0:00:22]}  Ke6 {[%clk 0:00:42]} 62. b7 {[%clk 0:00:22]}  Qd7+ {[%clk 0:00:43]} 63. Kb6 {[%clk 0:00:22]}  Qd6+ {[%clk 0:00:43]} 64. Ka7 {[%clk 0:00:20]}  Qxc7 {[%clk 0:00:43]} 65. Ka8 {[%clk 0:00:19]}  Qa5+ {[%clk 0:00:43]} 66. Kb8 {[%clk 0:00:20]}  Kd6 {[%clk 0:00:44]} 67. Kc8 {[%clk 0:00:20]}  Qc7# {[%clk 0:00:45]} 0-1


[Site "https://www.chess.com"]

[Event "Titled Tuesday Blitz July 20 2021"]
[White "Levine, Joseph"]
[Black "Nazaretyan, Tigran"]
[WhiteFideId "30940346"]
[BlackFideId "24162345"]
[WhiteElo "1802"]
[BlackElo "2214"]
[Result "0-1"]
[Round "03"]
[TimeControl "180+1"]
[Date "2021.07.21"]
[WhiteClock "0:00:07"]
[BlackClock "0:01:59"]

1. e4 {[%clk 0:02:59]}  c5 {[%clk 0:02:59]} 2. Nf3 {[%clk 0:02:57]}  Nc6 {[%clk 0:02:58]} 3. d4 {[%clk 0:02:56]}  cxd4 {[%clk 0:02:58]} 4. Nxd4 {[%clk 0:02:57]}  Nf6 {[%clk 0:02:58]} 5. Nc3 {[%clk 0:02:57]}  d6 {[%clk 0:02:58]} 6. Bc4 {[%clk 0:02:52]}  e5 {[%clk 0:02:58]} 7. Nxc6 {[%clk 0:02:39]}  bxc6 {[%clk 0:02:57]} 8. O-O {[%clk 0:02:35]}  Be7 {[%clk 0:02:57]} 9. h3 {[%clk 0:02:31]}  O-O {[%clk 0:02:56]} 10. Be3 {[%clk 0:02:30]}  Bb7 {[%clk 0:02:47]} 11. Bg5 {[%clk 0:02:17]}  h6 {[%clk 0:02:29]} 12. Bxf6 {[%clk 0:02:12]}  Bxf6 {[%clk 0:02:29]} 13. Qd3 {[%clk 0:02:07]}  Be7 {[%clk 0:02:24]} 14. Rad1 {[%clk 0:02:07]}  Qb6 {[%clk 0:02:24]} 15. Bb3 {[%clk 0:01:55]}  Ba6 {[%clk 0:02:22]} 16. Bc4 {[%clk 0:01:10]}  Bxc4 {[%clk 0:02:21]} 17. Qxc4 {[%clk 0:01:10]}  Qxb2 {[%clk 0:02:20]} 18. Rb1 {[%clk 0:01:08]}  Qxc2 {[%clk 0:02:20]} 19. Rfc1 {[%clk 0:01:07]}  Qd2 {[%clk 0:02:14]} 20. Qxc6 {[%clk 0:00:40]}  Rac8 {[%clk 0:02:11]} 21. Qd7 {[%clk 0:00:41]}  Bg5 {[%clk 0:02:05]} 22. h4 {[%clk 0:00:17]}  Bxh4 {[%clk 0:02:03]} 23. g3 {[%clk 0:00:10]}  Bxg3 {[%clk 0:02:02]} 24. Ne2 {[%clk 0:00:07]}  Qxe2 {[%clk 0:01:59]} 25. Rxc8 {[%clk 0:00:07]}  Qxf2+ {[%clk 0:01:59]} 26. Kh1 {[%clk 0:00:07]}  Qh2# {[%clk 0:01:59]} 0-1


[Site "https://www.chess.com"]

[Event "Titled Tuesday Blitz July 20 2021"]
[White "Manukyan, Artyom"]
[Black "Timmermans, Mark"]
[WhiteFideId "13305786"]
[BlackFideId "1026399"]
[WhiteElo "2034"]
[BlackElo "2460"]
[Result "0-1"]
[Round "03"]
[TimeControl "180+1"]
[Date "2021.07.21"]
[WhiteClock "0:00:07"]
[BlackClock "0:01:07"]

1. e4 {[%clk 0:03:00]}  e5 {[%clk 0:02:59]} 2. Nf3 {[%clk 0:03:00]}  Nc6 {[%clk 0:02:59]} 3. Bb5 {[%clk 0:03:00]}  f5 {[%clk 0:02:58]} 4. Nc3 {[%clk 0:02:59]}  fxe4 {[%clk 0:02:57]} 5. Nxe4 {[%clk 0:03:00]}  d5 {[%clk 0:02:52]} 6. Nxe5 {[%clk 0:02:59]}  dxe4 {[%clk 0:02:52]} 7. Nxc6 {[%clk 0:02:59]}  Qg5 {[%clk 0:02:53]} 8. Qe2 {[%clk 0:02:56]}  Nf6 {[%clk 0:02:52]} 9. f4 {[%clk 0:02:23]}  Qxf4 {[%clk 0:02:52]} 10. Ne5+ {[%clk 0:02:19]}  c6 {[%clk 0:02:49]} 11. d4 {[%clk 0:02:19]}  Qh4+ {[%clk 0:02:49]} 12. g3 {[%clk 0:02:18]}  Qh3 {[%clk 0:02:50]} 13. Bc4 {[%clk 0:02:16]}  Be6 {[%clk 0:02:51]} 14. Bf4 {[%clk 0:02:13]}  O-O-O {[%clk 0:02:50]} 15. O-O-O {[%clk 0:02:10]}  Bd6 {[%clk 0:02:51]} 16. Kb1 {[%clk 0:01:49]}  Bc7 {[%clk 0:02:48]} 17. Rhg1 {[%clk 0:01:43]}  Rhe8 {[%clk 0:02:34]} 18. Nf7 {[%clk 0:01:24]}  Rd7 {[%clk 0:01:58]} 19. Ng5 {[%clk 0:01:17]}  Bxc4 {[%clk 0:01:54]} 20. Qxc4 {[%clk 0:01:17]}  Qg4 {[%clk 0:01:52]} 21. Bxc7 {[%clk 0:01:10]}  Kxc7 {[%clk 0:01:52]} 22. Nf7 {[%clk 0:00:49]}  Qh5 {[%clk 0:01:52]} 23. Ne5 {[%clk 0:00:35]}  Rxe5 {[%clk 0:01:37]} 24. g4 {[%clk 0:00:33]}  Nxg4 {[%clk 0:01:38]} 25. dxe5 {[%clk 0:00:16]}  Rxd1+ {[%clk 0:01:38]} 26. Rxd1 {[%clk 0:00:16]}  Ne3 {[%clk 0:01:39]} 27. Rd7+ {[%clk 0:00:12]}  Kxd7 {[%clk 0:01:37]} 28. Qd4+ {[%clk 0:00:13]}  Kc8 {[%clk 0:01:19]} 29. Kc1 {[%clk 0:00:07]}  Qd1+ {[%clk 0:01:07]} 0-1


[Site "https://www.chess.com"]